fUSD/lending_fUSD_20251225
["ID","MTS","AMOUNT","RATE_DAILY","PERIOD"]
[399742299,1766650248564,-19469.66680864,0.00020773,2]
[399742300,1766650248578,-653.76080498,0.00020773,2]
[399742301,1766650248791,-420.37951455,0.00020773,2]
[399742302,1766650248807,-294.22,0.00020773,2]
[399742303,1766650249080,-5570.45453968,0.00020773,2]
[399742304,1766650249093,-12327.340356,0.00020773,2]
[399742305,1766650249106,-2044.3916497,0.00020773,2]
[399742309,1766650474975,1600.0,0.00025495,120]
[399742310,1766650485098,577.0,0.0003287,120]
[399742311,1766650541892,630.0,0.0003287,120]
[399742316,1766650721709,203.0,0.0003287,120]
[399742331,1766651132551,996.58075852,0.00032876,120]
[399742336,1766651221141,362.26,5.801e-05,2]
[399742337,1766651221418,362.26,6.106e-05,2]
[399742338,1766651221602,362.26,6.412e-05,2]
[399742339,1766651221805,362.26,6.717e-05,2]
[399742340,1766651222003,362.26,7.022e-05,2]
[399742341,1766651222184,362.26,7.328e-05,2]
[399742342,1766651222379,362.26,7.633e-05,2]
[399742343,1766651222577,362.26,7.938e-05,2]
[399742344,1766651222778,362.26,8.244e-05,2]
[399742345,1766651222986,362.26,8.549e-05,2]
[399742346,1766651223182,362.26,8.854e-05,2]
[399742347,1766651223379,362.26,9.16e-05,2]
[399742348,1766651223924,362.26,9.465e-05,2]
[399742349,1766651223999,362.26,9.77e-05,2]
[399742350,1766651224087,362.26,0.00010076,2]
[399742351,1766651224339,362.26,0.00010381,2]
[399742352,1766651224473,362.26,0.00010686,2]
[399742353,1766651224750,362.26,0.00010992,2]
[399742354,1766651224943,362.26,0.00011297,2]
[399742356,1766651298536,-216.71122492,0.00011355,2]
[399742357,1766651298565,-1012.7555,0.00011446,2]
[399742358,1766651298593,-300.0,0.00011454,2]
[399742359,1766651298620,-250.0,0.00011455,2]
[399742360,1766651298649,-244.0,0.00011455,2]
[399742361,1766651298678,-300.0,0.00011455,2]
[399742362,1766651298710,-1200.0,0.00011455,2]
[399742363,1766651298738,-300.0,0.00011455,2]
[399742364,1766651298767,-250.0,0.00011455,2]
[399742365,1766651298796,-300.0,0.00011455,2]
[399742366,1766651298824,-677.0603087,0.00011456,2]
[399742367,1766651298854,-7213.10493697,0.00011456,2]
[399742368,1766651298889,-1557.15658017,0.00011456,2]
[399742369,1766651298919,-301.22767209,0.00011456,2]
[399742370,1766651298947,-300.0,0.00011473,2]
[399742371,1766651298977,-150.0,0.00011538,2]
[399742372,1766651299008,-434.79,0.00011539,2]
[399742373,1766651299038,-151.0,0.00011539,2]
[399742374,1766651299070,-151.0,0.00011539,2]
[399742375,1766651299100,-151.0,0.00011539,2]
[399742376,1766651299133,-151.0,0.00011539,2]
[399742377,1766651299164,-151.0,0.00011539,2]
[399742378,1766651299197,-151.0,0.00011539,2]
[399742379,1766651299227,-151.0,0.00011539,2]
[399742380,1766651299260,-151.0,0.00011539,2]
[399742381,1766651299289,-500.0,0.00011539,2]
[399742382,1766651299320,-151.0,0.00011539,2]
[399742383,1766651299348,-500.0,0.00011539,2]
[399742384,1766651299378,-151.0,0.00011539,2]
[399742385,1766651299404,-500.0,0.00011539,2]
[399742386,1766651299431,-151.0,0.00011539,2]
[399742387,1766651299459,-500.0,0.00011539,2]
[399742388,1766651299489,-500.0,0.00011539,2]
[399742389,1766651299521,-513.22375719,0.00011539,2]
[399742390,1766651299548,-180.0,0.00011542,2]
[399742391,1766651299586,-500.0,0.00011542,2]
[399742392,1766651299626,-500.0,0.00011542,2]
[399742393,1766651299666,-500.0,0.00011542,2]
[399742394,1766651299707,-500.0,0.00011542,2]
[399742395,1766651299747,-500.0,0.00011542,2]
[399742396,1766651299785,-500.0,0.00011542,2]
[399742397,1766651299823,-500.0,0.00011542,2]
[399742398,1766651299862,-500.0,0.00011542,2]
[399742399,1766651299904,-500.0,0.00011542,2]
[399742400,1766651299942,-500.0,0.00011542,2]
[399742401,1766651299981,-500.0,0.00011542,2]
[399742402,1766651300024,-500.0,0.00011542,2]
[399742403,1766651300063,-500.0,0.00011542,2]
[399742404,1766651300101,-203.79432578,0.00011542,2]
[399742405,1766651300143,-500.0,0.00011542,2]
[399742406,1766651300179,-95.17569418,0.00011542,2]
[399742412,1766651385451,207.0,0.0003287,120]
[399742413,1766651422035,-946.17594328,0.000114,2]
[399742414,1766651424080,-177.89287093,0.00011343,2]
[399742422,1766651431347,-22.92557713,0.00011343,2]
[399742423,1766651431357,-691.32199118,0.000114,2]
[399742424,1766651431367,-300.0,0.00011441,2]
[399742425,1766651431377,-1200.0,0.00011441,2]
[399742426,1766651431387,-300.0,0.00011441,2]
[399742427,1766651431396,-150.0,0.00011441,2]
[399742428,1766651431406,-300.0,0.00011441,2]
[399742429,1766651431416,-244.0,0.00011441,2]
[399742430,1766651431425,-250.0,0.00011441,2]
[399742431,1766651431435,-263883.98180755,0.00011442,2]
[399742432,1766651431447,-3304.58751313,0.00011442,2]
[399742433,1766651431458,-8931.6668813,0.00011442,2]
[399742434,1766651431470,-404.0,0.00011442,2]
[399742435,1766651431537,-666.0,0.00011442,2]
[399742436,1766651431549,-795.74866501,0.00011442,2]
[399742437,1766651431564,-123950.85456874,0.00011442,2]
[399742438,1766651431576,-278.7665,0.00011442,2]
[399742439,1766651431588,-4562.01934014,0.00011442,2]
[399742462,1766651437456,-628.73244732,0.00011442,2]
[399742463,1766651437468,-2409.62510599,0.00011442,2]
[399742464,1766651437553,-8746.07942643,0.00011442,2]
[399742465,1766651437565,-44273.08680085,0.00011442,2]
[399742466,1766651437577,-1816.56732928,0.00011442,2]
[399742467,1766651437589,-478.70568065,0.00011442,2]
[399742468,1766651437655,-392.85782781,0.00011442,2]
[399742470,1766651439523,-4134.90067157,0.00011442,2]
[399742471,1766651439536,-1861.54,0.00011442,2]
[399742472,1766651439558,-1002.09272715,0.00011442,2]
[399742473,1766651439593,-438.65514724,0.00011442,2]
[399742474,1766651439721,-437.31989,0.00011442,2]
[399742475,1766651439733,-264.87614929,0.00011442,2]
[399742476,1766651439819,-2584.14950502,0.00011442,2]
[399742477,1766651439832,-523753.18601553,0.00011442,2]
[399742478,1766651439843,-351.15711979,0.00011443,2]
[399742479,1766651439854,-1506.5266,0.00011446,2]
[399742480,1766651439865,-2500.0,0.00011446,2]
[399742481,1766651439876,-150.99,0.00011543,2]
[399742482,1766651439886,-299.99,0.00011543,2]
[399742483,1766651439897,-9999.99,0.00011543,2]
[399742484,1766651439907,-9999.99,0.00011543,2]
[399742485,1766651439918,-500.0,0.00011544,2]
[399742487,1766651439929,-500.0,0.00011544,2]
[399742489,1766651439939,-500.0,0.00011544,2]
[399742491,1766651439950,-500.0,0.00011544,2]
[399742493,1766651439960,-500.0,0.00011544,2]
[399742495,1766651439971,-500.0,0.00011544,2]
[399742498,1766651439981,-500.0,0.00011544,2]
[399742500,1766651439992,-500.0,0.00011544,2]
[399742501,1766651440003,-500.0,0.00011544,2]
[399742503,1766651440014,-500.0,0.00011544,2]
[399742506,1766651440025,-184.72130781,0.00011544,2]
[399742508,1766651440035,-500.0,0.00011544,2]
[399742510,1766651440046,-500.0,0.00011544,2]
[399742512,1766651440056,-500.0,0.00011544,2]
[399742514,1766651440067,-500.0,0.00011544,2]
[399742516,1766651440077,-500.0,0.00011544,2]
[399742517,1766651440087,-500.0,0.00011544,2]
[399742519,1766651440098,-500.0,0.00011544,2]
[399742521,1766651440108,-3000.052,0.00011545,2]
[399742522,1766651440118,-256.614,0.00011545,2]
[399742523,1766651440128,-150.99,0.00011545,2]
[399742524,1766651440141,-158.48351976,0.00011545,2]
[399742525,1766651440158,-159.90534632,0.00011545,2]
[399742526,1766651440169,-229.59339776,0.00011545,2]
[399742527,1766651440180,-1000.0,0.00011556,2]
[399742528,1766651440190,-362.26,0.00011602,2]
[399742529,1766651440200,-434.79,0.00011813,2]
[399742530,1766651440211,-1557.1565801,0.00012061,2]
[399742531,1766651440222,-1000.0,0.00012072,2]
[399742532,1766651440232,-434.79,0.00012087,2]
[399742533,1766651440243,-351.15711972,0.00012223,2]
[399742534,1766651440253,-434.79,0.00012361,2]
[399742535,1766651440265,-150.0,0.00012505,2]
[399742536,1766651440276,-420.0,0.00012567,2]
[399742537,1766651440286,-300.0,0.00012567,2]
[399742538,1766651440296,-1680.0,0.00012585,2]
[399742539,1766651440307,-193.54890697,0.00012585,2]
[399742540,1766651440318,-300.0,0.00012585,2]
[399742541,1766651440330,-250.0,0.00012585,2]
[399742542,1766651440340,-300.0,0.00012585,2]
[399742543,1766651440351,-250.0,0.00012599,2]
[399742544,1766651440361,-300.0,0.00012599,2]
[399742545,1766651440371,-434.82,0.00012635,2]
[399742546,1766651440381,-1557.1565801,0.00012666,2]
[399742547,1766651440391,-10379.75,0.0001274,2]
[399742548,1766651440402,-30350.89986591,0.00012998,2]
[399742549,1766651440414,-351.15711972,0.00013002,2]
[399742550,1766651440424,-1604.3,0.00013137,2]
[399742551,1766651440435,-1557.1565801,0.00013271,2]
[399742552,1766651440446,-1000.0,0.00013581,2]
[399742553,1766651440457,-200.81844806,0.00013637,2]
[399742554,1766651440468,-500.0,0.00013698,2]
[399742555,1766651440478,-606.57691663,0.00013698,2]
[399742556,1766651440489,-500.0,0.00013698,2]
[399742557,1766651440499,-500.0,0.00013698,2]
[399742558,1766651440509,-500.0,0.00013698,2]
[399742559,1766651440526,-500.0,0.00013698,2]
[399742560,1766651440536,-500.0,0.00013698,2]
[399742561,1766651440547,-500.0,0.00013698,2]
[399742562,1766651440558,-500.0,0.00013698,2]
[399742563,1766651440568,-500.0,0.00013698,2]
[399742564,1766651440578,-470.9790947,0.00013698,2]
[399742565,1766651440588,-500.0,0.00013698,2]
[399742566,1766651440598,-500.0,0.00013698,2]
[399742567,1766651440608,-500.0,0.00013698,2]
[399742568,1766651440618,-500.0,0.00013698,2]
[399742569,1766651440628,-500.0,0.00013698,2]
[399742570,1766651440638,-500.0,0.00013698,2]
[399742571,1766651440649,-500.0,0.00013698,2]
[399742572,1766651440660,-500.0,0.00013698,2]
[399742573,1766651440670,-500.0,0.00013698,2]
[399742574,1766651440681,-500.0,0.00013698,2]
[399742575,1766651440692,-500.0,0.00013698,2]
[399742576,1766651440702,-500.0,0.00013698,2]
[399742577,1766651440713,-500.0,0.00013698,2]
[399742578,1766651440723,-500.0,0.00013698,2]
[399742579,1766651440734,-1000.0,0.00013699,2]
[399742580,1766651440744,-358.54818512,0.00013699,2]
[399742581,1766651440755,-351.15711972,0.00013782,2]
[399742582,1766651440765,-587.0,0.00013803,2]
[399742583,1766651440776,-1557.1565801,0.00013876,2]
[399742584,1766651440787,-3862.73658109,0.0001399,2]
[399742585,1766651440798,-432.99,0.0001443,2]
[399742586,1766651440809,-1557.1565801,0.0001448,2]
[399742587,1766651440819,-351.15711972,0.00014561,2]
[399742588,1766651440830,-1557.1565801,0.00015085,2]
[399742589,1766651440840,-1000.0,0.0001509,2]
[399742590,1766651440850,-479.48633933,0.00015117,2]
[399742591,1766651440861,-151.0,0.00015158,2]
[399742592,1766651440871,-823.0,0.00015161,2]
[399742593,1766651440886,-166.66,0.00015207,2]
[399742594,1766651440896,-151.0,0.00015274,2]
[399742595,1766651440906,-151.0,0.00015275,2]
[399742596,1766651440917,-351.15711972,0.00015341,2]
[399742597,1766651441237,-166.66,0.00015527,2]
[399742598,1766651441249,-1557.1565801,0.0001569,2]
[399742599,1766651441259,-166.66,0.00015847,2]
[399742600,1766651441279,-200.81844806,0.0001593,2]
[399742601,1766651441289,-151.0,0.00015997,2]
[399742602,1766651441299,-151.0,0.00015997,2]
[399742603,1766651441309,-1686097.22189001,0.00016,4]
[399742604,1766651441319,-677.06030869,0.0001603,2]
[399742605,1766651441330,-165.23,0.00016114,2]
[399742606,1766651441343,-351.15711972,0.0001612,2]
[399742607,1766651441353,-166.66,0.00016167,2]
[399742608,1766651441363,-16273.35889683,0.000162,5]
[399742609,1766651441374,-1557.1565801,0.00016295,2]
[399742610,1766651441384,-256.03972968,0.00016438,2]
[399742611,1766651441395,-626.04,0.00016438,2]
[399742612,1766651441406,-166.66,0.00016487,2]
[399742613,1766651441416,-1000.0,0.00016599,2]
[399742614,1766651441426,-1152.0,0.00016653,2]
[399742615,1766651441436,-500.0,0.00016699,2]
[399742616,1766651441446,-500.0,0.00016699,2]
[399742617,1766651441456,-187.27787589,0.00016699,2]
[399742618,1766651441466,-150.0,0.00016699,2]
[399742619,1766651441477,-500.0,0.00016699,2]
[399742620,1766651441487,-500.0,0.00016726,2]
[399742621,1766651441496,-620.76763019,0.00016726,2]
[399742622,1766651441507,-257.86837201,0.00016726,2]
[399742623,1766651441517,-500.0,0.00016726,2]
[399742624,1766651441527,-178.0,0.00016735,2]
[399742625,1766651441537,-178.0,0.00016753,2]
[399742626,1766651441546,-500.0,0.00016754,2]
[399742627,1766651441556,-500.0,0.00016754,2]
[399742628,1766651441566,-500.0,0.00016781,2]
[399742629,1766651441576,-500.0,0.00016781,2]
[399742630,1766651441585,-166.66,0.00016807,2]
[399742631,1766651441596,-500.0,0.00016809,2]
[399742632,1766651441607,-500.0,0.00016809,2]
[399742633,1766651441618,-500.0,0.00016836,2]
[399742634,1766651441628,-500.0,0.00016836,2]
[399742635,1766651441638,-178.0,0.00016856,2]
[399742636,1766651441648,-500.0,0.00016863,2]
[399742637,1766651441658,-500.0,0.00016891,2]
[399742638,1766651441668,-1557.1565801,0.000169,2]
[399742639,1766651441678,-170.28248417,0.000169,2]
[399742640,1766651441688,-199.75415694,0.000169,2]
[399742641,1766651441698,-351.15711972,0.000169,2]
[399742642,1766651441708,-169.19936624,0.000169,2]
[399742643,1766651441718,-178.0,0.00016911,2]
[399742644,1766651441743,-500.0,0.00016918,2]
[399742645,1766651441754,-2000.0,0.00016935,2]
[399742646,1766651441765,-2000.0,0.00016935,2]
[399742647,1766651441776,-2000.0,0.00016935,2]
[399742648,1766651441786,-178.0,0.00016938,2]
[399742649,1766651441796,-500.0,0.00016946,2]
[399742650,1766651441807,-2000.0,0.00016946,2]
[399742651,1766651441819,-1000.0,0.00016959,2]
[399742652,1766651441829,-1000.0,0.00016959,2]
[399742653,1766651441840,-1000.0,0.00016959,2]
[399742654,1766651441852,-1000.0,0.00016959,2]
[399742655,1766651441863,-347.604,0.00016959,2]
[399742656,1766651441874,-500.0,0.00016973,2]
[399742657,1766651441885,-501.7326664,0.00016973,2]
[399742658,1766651441897,-502.65078725,0.00016973,2]
[399742659,1766651441907,-500.0,0.00016973,2]
[399742660,1766651441919,-500.0,0.00016973,2]
[399742661,1766651441929,-500.0,0.00016973,2]
[399742662,1766651441940,-500.0,0.00016973,2]
[399742663,1766651441951,-500.0,0.00016973,2]
[399742664,1766651441961,-500.0,0.00016973,2]
[399742665,1766651441972,-1000.0,0.00016973,2]
[399742666,1766651441983,-1000.0,0.00016973,2]
[399742667,1766651441994,-1000.0,0.00016973,2]
[399742668,1766651442004,-265.838,0.00016973,2]
[399742669,1766651442015,-150.0,0.00016973,2]
[399742670,1766651442026,-150.0,0.00016973,2]
[399742671,1766651442037,-1600.0,0.00016997,2]
[399742672,1766651442049,-151.0,0.00016997,2]
[399742673,1766651442069,-300.0,0.00016999,2]
[399742674,1766651442080,-250.0,0.00017,2]
[399742675,1766651442094,-5362227.58914895,0.00017,2]
[399742681,1766651442569,419.0,0.0003287,120]
[399742684,1766651442604,-7454.74295601,0.00017,2]
[399742685,1766651442616,-727.60438332,0.00017,2]
[399742686,1766651442683,-773.11986588,0.00017,2]
[399742687,1766651442695,-237474.6819904,0.00017,2]
[399742688,1766651442840,166.0,0.0003287,120]
[399742690,1766651442924,-1042.19507486,0.00017,2]
[399742691,1766651442943,-345.0,0.00017,2]
[399742696,1766651445526,-260.63,0.00017,2]
[399742697,1766651445538,-6402.076457,0.00017,2]
[399742698,1766651445552,-11135.68440695,0.00017,2]
[399742699,1766651445563,-612.33628213,0.00017,2]
[399742700,1766651445575,-1600.0,0.00017,2]
[399742701,1766651445587,-300000.0,0.00017,2]
[399742702,1766651445735,-1538.62639147,0.00017,2]
[399742703,1766651445760,-46306.69109011,0.00017,2]
[399742704,1766651446342,-5347.36631166,0.00017,2]
[399742705,1766651446354,-19183.69944258,0.00017,2]
[399742706,1766651446374,-3235.75122658,0.00017,2]
[399742708,1766651497077,-205.291,0.00011213,2]
[399742709,1766651497105,-548.02006808,0.00011213,2]
[399742710,1766651502094,-364.46315353,0.00011213,2]
[399742711,1766651503563,-316.59458203,0.00011213,2]
[399742712,1766651506734,-205.75,0.00011213,2]
[399742713,1766651510860,-244.0,0.00011213,2]
[399742714,1766651514978,-280.81207019,0.00011213,2]
[399742715,1766651518053,-307.84432286,0.00011213,2]
[399742717,1766651587033,-192.15567714,0.00011213,2]
[399742718,1766651590732,-174.07958362,0.00011213,2]
[399742719,1766651590759,-35.46943616,0.00011213,2]
[399742720,1766651683647,1105.0,0.0003287,120]
[399742721,1766651684439,1945.0,0.0003287,120]
[399742722,1766651685208,1891.0,0.0003287,120]
[399742723,1766651685996,1355.0,0.0003287,120]
[399742725,1766651686778,354.0,0.0003287,120]
[399742726,1766651687577,1948.0,0.0003287,120]
[399742727,1766651720376,223.91408624,0.0003287,120]
[399742728,1766651741220,1470.09852164,0.0003287,120]
[399742729,1766651767171,3579.9287992,0.00032876,120]
[399742730,1766651767229,-97.08736715,0.00011213,2]
[399742731,1766651767252,-162.24385661,0.00011277,2]
[399742734,1766651986224,-87.75614339,0.00011277,2]
[399742735,1766651986743,-377.97427598,0.00011341,2]
[399742736,1766651991419,-204.96395091,0.00011341,2]
[399742738,1766651994620,-51.12439574,0.00011341,2]
[399742739,1766651994645,-212.23688553,0.00011341,2]
[399742740,1766651997064,-87.76311447,0.00011341,2]
[399742741,1766651997090,-195.45387146,0.00011342,2]
[399742742,1766651999699,-211.09466061,0.00011342,2]
[399742743,1766652003043,-264.34090436,0.00011341,2]
[399742745,1766652005462,-160.79287812,0.00011341,2]
[399742746,1766652008632,-289.84646275,0.00011341,2]
[399742747,1766652011112,-188.12766195,0.00011341,2]
[399742748,1766652013903,-296.89209282,0.00011341,2]
[399742749,1766652013928,-10.48597796,0.00011341,2]
[399742750,1766652015933,-289.51402204,0.00011341,2]
[399742751,1766652015957,-10.48597796,0.00011341,2]
[399742752,1766652017954,-165.8939225,0.00011341,2]
[399742753,1766652021589,-123.62009954,0.00011341,2]
[399742754,1766652021612,-183.6274505,0.00011341,2]
[399742755,1766652024131,-59.3725495,0.00011341,2]
[399742756,1766652024157,-227.51409054,0.00011342,2]
[399742757,1766652024182,-27.89359875,0.00011342,2]
[399742758,1766652025627,-267.90004059,0.00011342,2]
[399742759,1766652027687,-201.20365773,0.00011342,2]
[399742760,1766652029267,-174.77566897,0.00011342,2]
[399742761,1766652031471,-236.00361132,0.00011342,2]
[399742762,1766652033583,-342.84837436,0.00011342,2]
[399742763,1766652038223,-289.06394144,0.00011342,2]
[399742764,1766652039658,-152.06562339,0.00011342,2]
[399742765,1766652041727,-582.79154504,0.00011342,2]
[399742792,1766652043985,-160.75809482,0.00011342,2]
[399742802,1766652046052,-202.617375,0.00011342,2]
[399742803,1766652048290,-593.96308913,0.00011342,2]
[399742804,1766652050315,-175.93951515,0.00011342,2]
[399742805,1766652053507,-230.41963182,0.00011342,2]
[399742806,1766652054956,-320.78185682,0.00011342,2]
[399742807,1766652056561,-317.53417626,0.00011342,2]
[399742808,1766652058621,-233.83834714,0.00011342,2]
[399742809,1766652060132,-502.72372436,0.00011342,2]
[399742810,1766652061809,-300.0,0.00011341,2]
[399742811,1766652061835,-163.14635088,0.00011342,2]
[399742812,1766652063426,-293.44463635,0.00011342,2]
[399742813,1766652064908,-187.28530058,0.00011342,2]
[399742814,1766652067562,-291.47211502,0.00011342,2]
[399742815,1766652069750,-164.77834246,0.00011342,2]
[399742816,1766652071624,-202.62079403,0.00011342,2]
[399742817,1766652072878,-226.81699666,0.00011342,2]
[399742818,1766652074371,-224.38656483,0.00011342,2]
[399742819,1766652076225,-175.38518518,0.00011342,2]
[399742820,1766652081528,-451.0,0.00011342,2]
[399742821,1766652083843,-203.01339086,0.00011342,2]
[399742822,1766652087581,-211.09466061,0.00011342,2]
[399742823,1766652089740,-307.14893062,0.00011342,2]
[399742825,1766652092589,-192.85106938,0.00011342,2]
[399742826,1766652093433,1920.033,0.00011213,2]
[399742827,1766652093508,164.233,0.00011213,2]
[399742828,1766652094646,-293.45686372,0.00011342,2]
[399742830,1766652098326,-185.56190518,0.00011342,2]
[399742832,1766652100297,-220.44174219,0.00011342,2]
[399742833,1766652103059,-198.16501108,0.00011342,2]
[399742834,1766652104586,-346.0670622,0.00011342,2]
[399742835,1766652109300,-300.0,0.00011342,2]
[399742836,1766652114352,-340.30061707,0.00011342,2]
[399742837,1766652116685,-417.46585275,0.00011342,2]
[399742838,1766652120583,-156.15921717,0.00011342,2]
[399742839,1766652124653,-189.36615261,0.00011342,2]
[399742840,1766652125697,211.35420755,0.00011242,2]
[399742841,1766652126988,-308.05750805,0.00011342,2]
[399742842,1766652129504,-253.351569,0.00011342,2]
[399742843,1766652132295,-211.35420753,0.00011292,2]
[399742844,1766652132320,-21.55809133,0.00011342,2]
[399742845,1766652137649,-305.73835349,0.00011342,2]
[399742846,1766652140013,-263.72438278,0.00011342,2]
[399742847,1766652142619,-164.42133943,0.00011342,2]
[399742848,1766652145525,-228.57726909,0.00011342,2]
[399742849,1766652148884,-163.58398172,0.00011342,2]
[399742850,1766652151147,-182.57397268,0.00011342,2]
[399742851,1766652152723,-407.45399207,0.00011342,2]
[399742852,1766652154255,-271.09883955,0.00011342,2]
[399742853,1766652159815,-191.8681025,0.00011342,2]
[399742854,1766652162042,-224.58067817,0.00011342,2]
[399742855,1766652163677,-314.49605164,0.00011342,2]
[399742856,1766652165219,-166.53162096,0.00011342,2]
[399742857,1766652166698,-278.25639832,0.00011342,2]
[399742858,1766652168286,-82.3888157,0.00011342,2]
[399742859,1766652168311,-217.6111843,0.00011342,2]
[399742860,1766652173090,-252.58659223,0.00011342,2]
[399742861,1766652283035,3044.89663055,0.00032877,120]
[399742864,1766652430446,211.35420753,0.00011241,2]
[399742867,1766652487041,-195.0,0.0001134,2]
[399742869,1766652558537,173.75,0.00031507,120]
[399742870,1766652572282,195.99766643,0.00032874,120]
[399742872,1766652592286,173.76917208,0.00011242,2]
[399742873,1766652603788,195.0,0.00011242,2]
[399742876,1766652631493,-105.0,0.0001134,2]
[399742877,1766652631503,-1200.0,0.0001134,2]
[399742878,1766652631513,-300.0,0.0001134,2]
[399742879,1766652631523,-1131.0,0.0001134,2]
[399742880,1766652631532,-300.0,0.0001134,2]
[399742881,1766652631542,-243.0,0.0001134,2]
[399742882,1766652631551,-274.2991081,0.00011341,2]
[399742883,1766652631561,-321.38324575,0.00011341,2]
[399742884,1766652631570,-500.0,0.00011341,2]
[399742885,1766652631580,-500.0,0.00011341,2]
[399742886,1766652631590,-500.0,0.00011341,2]
[399742887,1766652631599,-500.0,0.00011341,2]
[399742888,1766652631609,-500.0,0.00011341,2]
[399742889,1766652631619,-195.45799829,0.00011341,2]
[399742890,1766652631628,-150.0,0.00011341,2]
[399742891,1766652631638,-323.93,0.00011341,2]
[399742892,1766652631648,-244.15684051,0.00011341,2]
[399742893,1766652631657,-244.15684051,0.00011341,2]
[399742894,1766652631667,-250.0,0.00011341,2]
[399742895,1766652631677,-8923.5485,0.00011342,2]
[399742896,1766652631687,-244.15684051,0.00011342,2]
[399742897,1766652631696,-168743.76213709,0.00011342,2]
[399742898,1766652631709,-35245.62977036,0.00011342,2]
[399742899,1766652631720,-1889.44914174,0.00011342,2]
[399742900,1766652631731,-1703.53710003,0.00011342,2]
[399742901,1766652631747,-797.59445327,0.00011342,2]
[399742902,1766652631759,-1108.44106798,0.00011342,2]
[399742903,1766652631776,-17039.50897678,0.00011342,2]
[399742904,1766652631791,-4835.2996689,0.00011342,2]
[399742905,1766652631802,-272.47,0.00011342,2]
[399742906,1766652631814,-1671.51544629,0.00011342,2]
[399742948,1766652637627,-8568.3,0.00011342,2]
[399742949,1766652637639,-52806.74274463,0.00011342,2]
[399742950,1766652637651,-787.36629238,0.00011342,2]
[399742951,1766652637663,-3839.69519995,0.00011342,2]
[399742952,1766652637685,-3750.65505421,0.00011342,2]
[399742961,1766652639723,-437.495,0.00011342,2]
[399742968,1766652640679,-1.7e-07,0.00011342,2]
[399742969,1766652640691,-696502.53794622,0.00011342,2]
[399742970,1766652640702,-595.65883493,0.00011342,2]
[399742971,1766652640712,-1151.58250634,0.00011342,2]
[399742972,1766652640723,-8491.85784414,0.00011342,2]
[399742973,1766652640732,-250.0,0.0001136,2]
[399742974,1766652640743,-500.0,0.00011435,2]
[399742975,1766652640752,-200.0,0.00011435,2]
[399742976,1766652640762,-200.0,0.00011435,2]
[399742977,1766652640772,-151.0,0.00011435,2]
[399742978,1766652640782,-151.0,0.00011435,2]
[399742979,1766652640792,-151.0,0.00011435,2]
[399742980,1766652640802,-151.0,0.00011435,2]
[399742981,1766652640814,-151.0,0.00011435,2]
[399742982,1766652640824,-151.0,0.00011435,2]
[399742983,1766652640835,-151.0,0.00011435,2]
[399742984,1766652640846,-151.0,0.00011435,2]
[399742985,1766652640856,-151.0,0.00011435,2]
[399742986,1766652640867,-151.0,0.00011435,2]
[399742987,1766652640877,-151.0,0.00011435,2]
[399742988,1766652640887,-1000.0,0.00011441,2]
[399742989,1766652640897,-1002.8809457,0.00011441,2]
[399742990,1766652640907,-150.99,0.00011442,2]
[399742991,1766652640921,-323.93,0.00011615,2]
[399742992,1766652640931,-323.93,0.00011889,2]
[399742993,1766652640941,-150.99,0.0001196,2]
[399742994,1766652640951,-7623.33,0.0001196,2]
[399742995,1766652640961,-9999.99,0.0001196,2]
[399742996,1766652640973,-299.99,0.0001196,2]
[399742997,1766652640983,-1606.82,0.0001196,2]